[Event "Titled Tuesday Blitz February 14 Early 2023"]
[White "Fernandez, Michael"]
[Black "Davalos Prieto, Abel Justo"]
[WhiteFideId "5803560"]
[BlackFideId "5102766"]
[WhiteElo "2181"]
[BlackElo "2029"]
[Result "1/2-1/2"]
[Round "08"]
[TimeControl "180+2"]
[Date "2023.02.14"]
[WhiteClock "0:00:10"]
[BlackClock "0:00:04"]

1. d4 {[%clk 0:02:59]}  Nf6 {[%clk 0:02:55]} 2. Nf3 {[%clk 0:02:52]}  d5 {[%clk 0:02:51]} 3. c4 {[%clk 0:02:51]}  e6 {[%clk 0:02:51]} 4. Nc3 {[%clk 0:02:48]}  Be7 {[%clk 0:02:50]} 5. cxd5 {[%clk 0:02:45]}  exd5 {[%clk 0:02:49]} 6. Bg5 {[%clk 0:02:45]}  O-O {[%clk 0:02:48]} 7. e3 {[%clk 0:02:44]}  c6 {[%clk 0:02:47]} 8. Qc2 {[%clk 0:02:34]}  Nbd7 {[%clk 0:02:42]} 9. Bd3 {[%clk 0:02:32]}  Re8 {[%clk 0:02:42]} 10. O-O {[%clk 0:02:28]}  Ne4 {[%clk 0:02:40]} 11. Bxe4 {[%clk 0:02:10]}  dxe4 {[%clk 0:02:18]} 12. Nxe4 {[%clk 0:02:11]}  Bxg5 {[%clk 0:02:17]} 13. Nexg5 {[%clk 0:02:11]}  Nf6 {[%clk 0:02:17]} 14. Ne5 {[%clk 0:02:07]}  Re7 {[%clk 0:02:08]} 15. Qb3 {[%clk 0:01:57]}  Qd5 {[%clk 0:01:59]} 16. Qxd5 {[%clk 0:01:52]}  Nxd5 {[%clk 0:02:00]} 17. Ngf3 {[%clk 0:01:43]}  f6 {[%clk 0:01:58]} 18. Nc4 {[%clk 0:01:38]}  Bg4 {[%clk 0:01:51]} 19. Ncd2 {[%clk 0:01:36]}  Rd8 {[%clk 0:01:45]} 20. a3 {[%clk 0:01:30]}  a5 {[%clk 0:01:42]} 21. Rac1 {[%clk 0:01:28]}  Kf7 {[%clk 0:01:27]} 22. Nb3 {[%clk 0:01:23]}  a4 {[%clk 0:01:21]} 23. Nc5 {[%clk 0:01:23]}  Nb6 {[%clk 0:01:20]} 24. Nd2 {[%clk 0:01:13]}  Be2 {[%clk 0:01:17]} 25. Rfe1 {[%clk 0:01:13]}  Bb5 {[%clk 0:01:17]} 26. Nce4 {[%clk 0:00:53]}  Bd3 {[%clk 0:01:10]} 27. Nc3 {[%clk 0:00:52]}  Ra8 {[%clk 0:01:03]} 28. f4 {[%clk 0:00:44]}  Nc4 {[%clk 0:00:42]} 29. Nxc4 {[%clk 0:00:43]}  Bxc4 {[%clk 0:00:42]} 30. Kf2 {[%clk 0:00:43]}  Bb3 {[%clk 0:00:40]} 31. Re2 {[%clk 0:00:38]}  Rd8 {[%clk 0:00:38]} 32. Rd2 {[%clk 0:00:38]}  Rde8 {[%clk 0:00:36]} 33. Re1 {[%clk 0:00:38]}  f5 {[%clk 0:00:31]} 34. h3 {[%clk 0:00:33]}  Kf6 {[%clk 0:00:30]} 35. g4 {[%clk 0:00:33]}  g6 {[%clk 0:00:28]} 36. g5+ {[%clk 0:00:30]}  Kf7 {[%clk 0:00:26]} 37. h4 {[%clk 0:00:31]}  Rd8 {[%clk 0:00:20]} 38. Kf3 {[%clk 0:00:28]}  c5 {[%clk 0:00:18]} 39. d5 {[%clk 0:00:24]}  Red7 {[%clk 0:00:17]} 40. e4 {[%clk 0:00:18]}  fxe4+ {[%clk 0:00:16]} 41. Rxe4 {[%clk 0:00:16]}  Bxd5 {[%clk 0:00:12]} 42. Rxd5 {[%clk 0:00:16]}  Rxd5 {[%clk 0:00:13]} 43. Nxd5 {[%clk 0:00:17]}  Rxd5 {[%clk 0:00:13]} 44. Rxa4 {[%clk 0:00:18]}  Rd3+ {[%clk 0:00:13]} 45. Ke4 {[%clk 0:00:17]}  Rb3 {[%clk 0:00:13]} 46. Rc4 {[%clk 0:00:14]}  b6 {[%clk 0:00:13]} 47. a4 {[%clk 0:00:11]}  Rxb2 {[%clk 0:00:10]} 48. a5 {[%clk 0:00:12]}  bxa5 {[%clk 0:00:08]} 49. Rxc5 {[%clk 0:00:12]}  a4 {[%clk 0:00:08]} 50. Ra5 {[%clk 0:00:12]}  Rb4+ {[%clk 0:00:07]} 51. Kf3 {[%clk 0:00:12]}  Ke6 {[%clk 0:00:06]} 52. Kg4 {[%clk 0:00:11]}  Kd6 {[%clk 0:00:06]} 53. Ra7 {[%clk 0:00:11]}  Kc5 {[%clk 0:00:05]} 54. Rc7+ {[%clk 0:00:10]}  Kb5 {[%clk 0:00:04]} 55. Rxh7 {[%clk 0:00:09]}  a3 {[%clk 0:00:04]} 56. Rb7+ {[%clk 0:00:09]}  Kc4 {[%clk 0:00:03]} 57. Ra7 {[%clk 0:00:09]}  Kb3 {[%clk 0:00:04]} 58. h5 {[%clk 0:00:07]}  gxh5+ {[%clk 0:00:03]} 59. Kxh5 {[%clk 0:00:08]}  Rxf4 {[%clk 0:00:03]} 60. g6 {[%clk 0:00:09]}  Rf2 {[%clk 0:00:03]} 61. Rb7+ {[%clk 0:00:07]}  Ka2 {[%clk 0:00:02]} 62. g7 {[%clk 0:00:08]}  Rh2+ {[%clk 0:00:01]} 63. Kg6 {[%clk 0:00:09]}  Rg2+ {[%clk 0:00:02]} 64. Kf7 {[%clk 0:00:09]}  Rxg7+ {[%clk 0:00:03]} 65. Kxg7 {[%clk 0:00:09]}  Ka1 {[%clk 0:00:03]} 66. Kf6 {[%clk 0:00:09]}  a2 {[%clk 0:00:04]} 67. Ke5 {[%clk 0:00:10]} 1/2-1/2


[Site "https://www.chess.com"]

[Event "Titled Tuesday Blitz February 14 Early 2023"]
[White "EREBUNI91"]
[Black "Pourkashiyan, Atousa"]
[BlackFideId "12502014"]
[WhiteElo "2719"]
[BlackElo "2282"]
[Result "1-0"]
[Round "08"]
[TimeControl "180+2"]
[Date "2023.02.14"]
[WhiteClock "0:00:26"]
[BlackClock "0:00:01"]

1. e4 {[%clk 0:02:59]}  c5 {[%clk 0:02:33]} 2. Nc3 {[%clk 0:02:58]}  e6 {[%clk 0:02:12]} 3. Nf3 {[%clk 0:02:58]}  a6 {[%clk 0:02:06]} 4. g3 {[%clk 0:02:57]}  b5 {[%clk 0:01:58]} 5. d4 {[%clk 0:02:57]}  cxd4 {[%clk 0:01:36]} 6. Nxd4 {[%clk 0:02:58]}  Bb7 {[%clk 0:01:36]} 7. Bg2 {[%clk 0:02:58]}  b4 {[%clk 0:01:34]} 8. Na4 {[%clk 0:02:57]}  Nf6 {[%clk 0:01:33]} 9. Qe2 {[%clk 0:02:56]}  Nc6 {[%clk 0:01:15]} 10. Nb3 {[%clk 0:02:55]}  d6 {[%clk 0:00:49]} 11. O-O {[%clk 0:02:54]}  Be7 {[%clk 0:00:50]} 12. Rd1 {[%clk 0:02:54]}  Qc7 {[%clk 0:00:49]} 13. Be3 {[%clk 0:02:50]}  Nd7 {[%clk 0:00:44]} 14. c3 {[%clk 0:02:37]}  a5 {[%clk 0:00:41]} 15. Rac1 {[%clk 0:02:37]}  O-O {[%clk 0:00:41]} 16. Nd4 {[%clk 0:02:20]}  Ba6 {[%clk 0:00:40]} 17. Qd2 {[%clk 0:02:16]}  Nc5 {[%clk 0:00:34]} 18. Nxc5 {[%clk 0:02:09]}  dxc5 {[%clk 0:00:32]} 19. Nxc6 {[%clk 0:02:10]}  Qxc6 {[%clk 0:00:32]} 20. e5 {[%clk 0:02:10]}  Qb6 {[%clk 0:00:19]} 21. Bxa8 {[%clk 0:01:20]}  Rxa8 {[%clk 0:00:20]} 22. Qd7 {[%clk 0:01:12]}  Bf8 {[%clk 0:00:18]} 23. c4 {[%clk 0:00:59]}  Bb7 {[%clk 0:00:18]} 24. Rd2 {[%clk 0:00:55]}  Rd8 {[%clk 0:00:08]} 25. Qxb7 {[%clk 0:00:32]}  Qxb7 {[%clk 0:00:07]} 26. Rxd8 {[%clk 0:00:33]}  Qc7 {[%clk 0:00:03]} 27. Rcd1 {[%clk 0:00:33]}  h5 {[%clk 0:00:02]} 28. Ra8 {[%clk 0:00:32]}  Qxe5 {[%clk 0:00:01]} 29. Rdd8 {[%clk 0:00:32]}  Qxb2 {[%clk 0:00:01]} 30. Rxf8+ {[%clk 0:00:32]}  Kh7 {[%clk 0:00:02]} 31. Rxf7 {[%clk 0:00:28]}  Qxa2 {[%clk 0:00:01]} 32. Raa7 {[%clk 0:00:26]} 1-0


[Site "https://www.chess.com"]

[Event "Titled Tuesday Blitz February 14 Early 2023"]
[White "Janaszak, Dawid"]
[Black "Kalajzic, Ivan"]
[WhiteFideId "1119206"]
[BlackFideId "14506378"]
[WhiteElo "2316"]
[BlackElo "2062"]
[Result "1-0"]
[Round "08"]
[TimeControl "180+2"]
[Date "2023.02.14"]
[WhiteClock "0:01:26"]
[BlackClock "0:00:06"]

1. e4 {[%clk 0:03:00]}  Nc6 {[%clk 0:02:59]} 2. Nf3 {[%clk 0:02:57]}  d6 {[%clk 0:02:59]} 3. Bc4 {[%clk 0:02:54]}  Nf6 {[%clk 0:02:59]} 4. d3 {[%clk 0:02:52]}  Bg4 {[%clk 0:02:58]} 5. h3 {[%clk 0:02:49]}  Bxf3 {[%clk 0:02:55]} 6. gxf3 {[%clk 0:02:50]}  e6 {[%clk 0:02:54]} 7. Nc3 {[%clk 0:02:48]}  d5 {[%clk 0:02:53]} 8. Bb5 {[%clk 0:02:47]}  a6 {[%clk 0:02:37]} 9. Bxc6+ {[%clk 0:02:46]}  bxc6 {[%clk 0:02:38]} 10. Bd2 {[%clk 0:02:40]}  Bc5 {[%clk 0:02:33]} 11. Qe2 {[%clk 0:02:36]}  Qe7 {[%clk 0:02:28]} 12. O-O-O {[%clk 0:02:36]}  a5 {[%clk 0:02:12]} 13. Rhg1 {[%clk 0:02:28]}  Rg8 {[%clk 0:02:08]} 14. Bg5 {[%clk 0:02:19]}  h6 {[%clk 0:02:01]} 15. Bxf6 {[%clk 0:02:14]}  Qxf6 {[%clk 0:02:02]} 16. exd5 {[%clk 0:02:15]}  Bd4 {[%clk 0:01:06]} 17. dxe6 {[%clk 0:02:10]}  Bxc3 {[%clk 0:01:04]} 18. bxc3 {[%clk 0:02:01]}  Qxc3 {[%clk 0:01:01]} 19. Rde1 {[%clk 0:01:55]}  f5 {[%clk 0:00:34]} 20. e7 {[%clk 0:01:45]}  Rb8 {[%clk 0:00:11]} 21. Qe6 {[%clk 0:01:41]}  Rh8 {[%clk 0:00:10]} 22. Qg6+ {[%clk 0:01:34]}  Kd7 {[%clk 0:00:07]} 23. Qxf5+ {[%clk 0:01:33]}  Kd6 {[%clk 0:00:06]} 24. Rg6+ {[%clk 0:01:26]} 1-0


[Site "https://www.chess.com"]

[Event "Titled Tuesday Blitz February 14 Early 2023"]
[White "Liu, Casper"]
[Black "Ladan, Nicholas"]
[WhiteFideId "1454153"]
[BlackFideId "30918855"]
[WhiteElo "2278"]
[BlackElo "2228"]
[Result "0-1"]
[Round "08"]
[TimeControl "180+2"]
[Date "2023.02.14"]
[WhiteClock "0:01:06"]
[BlackClock "0:01:35"]

1. d4 {[%clk 0:03:00]}  d5 {[%clk 0:02:58]} 2. c4 {[%clk 0:03:01]}  c6 {[%clk 0:02:57]} 3. Nc3 {[%clk 0:03:02]}  Nf6 {[%clk 0:02:57]} 4. Nf3 {[%clk 0:03:02]}  e6 {[%clk 0:02:58]} 5. cxd5 {[%clk 0:03:01]}  exd5 {[%clk 0:02:57]} 6. Bg5 {[%clk 0:03:02]}  Be7 {[%clk 0:02:57]} 7. e3 {[%clk 0:03:01]}  Nh5 {[%clk 0:02:54]} 8. Bxe7 {[%clk 0:03:00]}  Qxe7 {[%clk 0:02:55]} 9. Ne5 {[%clk 0:03:00]}  g6 {[%clk 0:02:54]} 10. Bd3 {[%clk 0:03:00]}  Nd7 {[%clk 0:02:53]} 11. f4 {[%clk 0:02:59]}  f6 {[%clk 0:02:48]} 12. Nxg6 {[%clk 0:02:43]}  Qxe3+ {[%clk 0:02:37]} 13. Kf1 {[%clk 0:02:44]}  Nxf4 {[%clk 0:02:20]} 14. Nxh8 {[%clk 0:02:39]}  Nxd3 {[%clk 0:02:18]} 15. Qh5+ {[%clk 0:02:08]}  Kd8 {[%clk 0:02:12]} 16. Nf7+ {[%clk 0:02:00]}  Kc7 {[%clk 0:02:11]} 17. Qf5 {[%clk 0:01:56]}  N7e5 {[%clk 0:01:50]} 18. Qxf6 {[%clk 0:01:54]}  Nc4 {[%clk 0:01:44]} 19. g3 {[%clk 0:01:06]}  Bh3# {[%clk 0:01:35]} 0-1


[Site "https://www.chess.com"]

[Event "Titled Tuesday Blitz February 14 Early 2023"]
[White "Abdilkhair, Abilmansur"]
[Black "Cepo, Toni"]
[WhiteFideId "13716417"]
[BlackFideId "4675916"]
[WhiteElo "2268"]
[BlackElo "2145"]
[Result "1-0"]
[Round "08"]
[TimeControl "180+2"]
[Date "2023.02.14"]
[WhiteClock "0:00:06"]
[BlackClock "0:00:06"]

1. d4 {[%clk 0:03:00]}  Nf6 {[%clk 0:02:56]} 2. c4 {[%clk 0:03:01]}  e6 {[%clk 0:02:54]} 3. Nc3 {[%clk 0:03:01]}  d5 {[%clk 0:02:53]} 4. Bg5 {[%clk 0:02:58]}  Be7 {[%clk 0:02:51]} 5. e3 {[%clk 0:02:59]}  c6 {[%clk 0:02:50]} 6. Nf3 {[%clk 0:02:59]}  h6 {[%clk 0:02:50]} 7. Bh4 {[%clk 0:02:58]}  Nbd7 {[%clk 0:02:50]} 8. Rc1 {[%clk 0:02:59]}  O-O {[%clk 0:02:49]} 9. a3 {[%clk 0:02:58]}  b6 {[%clk 0:02:47]} 10. cxd5 {[%clk 0:02:57]}  cxd5 {[%clk 0:02:44]} 11. Bg3 {[%clk 0:02:48]}  Nh5 {[%clk 0:02:30]} 12. Ne5 {[%clk 0:02:42]}  Nxg3 {[%clk 0:02:27]} 13. Nc6 {[%clk 0:02:42]}  Qe8 {[%clk 0:02:26]} 14. hxg3 {[%clk 0:02:37]}  Bb7 {[%clk 0:02:24]} 15. Nb5 {[%clk 0:02:19]}  Bxc6 {[%clk 0:02:14]} 16. Rxc6 {[%clk 0:02:14]}  Qd8 {[%clk 0:02:08]} 17. Qc2 {[%clk 0:02:06]}  Nb8 {[%clk 0:01:33]} 18. Rc3 {[%clk 0:01:41]}  a6 {[%clk 0:01:26]} 19. Nc7 {[%clk 0:01:37]}  Ra7 {[%clk 0:01:21]} 20. e4 {[%clk 0:00:19]}  Bd6 {[%clk 0:01:15]} 21. Nxe6 {[%clk 0:00:19]}  fxe6 {[%clk 0:01:14]} 22. e5 {[%clk 0:00:20]}  Be7 {[%clk 0:01:13]} 23. Qg6 {[%clk 0:00:21]}  Qe8 {[%clk 0:00:58]} 24. Qxe6+ {[%clk 0:00:20]}  Qf7 {[%clk 0:00:58]} 25. Qxf7+ {[%clk 0:00:20]}  Kxf7 {[%clk 0:00:59]} 26. Be2 {[%clk 0:00:17]}  Bd8 {[%clk 0:00:46]} 27. Bf3 {[%clk 0:00:16]}  Rc7 {[%clk 0:00:41]} 28. Bxd5+ {[%clk 0:00:15]}  Ke7 {[%clk 0:00:41]} 29. O-O {[%clk 0:00:13]}  b5 {[%clk 0:00:37]} 30. Re3 {[%clk 0:00:13]}  Nd7 {[%clk 0:00:37]} 31. f4 {[%clk 0:00:12]}  Nb6 {[%clk 0:00:37]} 32. Be4 {[%clk 0:00:12]}  Nc4 {[%clk 0:00:37]} 33. Re2 {[%clk 0:00:12]}  Rd7 {[%clk 0:00:35]} 34. d5 {[%clk 0:00:12]}  Bb6+ {[%clk 0:00:35]} 35. Kh2 {[%clk 0:00:13]}  Ne3 {[%clk 0:00:24]} 36. d6+ {[%clk 0:00:13]}  Kd8 {[%clk 0:00:24]} 37. Rfe1 {[%clk 0:00:13]}  Ng4+ {[%clk 0:00:22]} 38. Kh3 {[%clk 0:00:12]}  Nf2+ {[%clk 0:00:22]} 39. Kh2 {[%clk 0:00:11]}  Ng4+ {[%clk 0:00:19]} 40. Kh3 {[%clk 0:00:10]}  Nf2+ {[%clk 0:00:19]} 41. Kh4 {[%clk 0:00:11]}  g5+ {[%clk 0:00:16]} 42. Kh5 {[%clk 0:00:10]}  gxf4 {[%clk 0:00:15]} 43. Bc6 {[%clk 0:00:07]}  Rf5+ {[%clk 0:00:14]} 44. Kg6 {[%clk 0:00:06]}  Rg5+ {[%clk 0:00:13]} 45. Kxh6 {[%clk 0:00:06]}  Rdg7 {[%clk 0:00:13]} 46. Bf3 {[%clk 0:00:04]}  fxg3 {[%clk 0:00:07]} 47. e6 {[%clk 0:00:03]}  R5g6+ {[%clk 0:00:07]} 48. Kh5 {[%clk 0:00:03]}  Rg5+ {[%clk 0:00:07]} 49. Kh6 {[%clk 0:00:03]}  R5g6+ {[%clk 0:00:02]} 50. Kh5 {[%clk 0:00:04]}  Rg5+ {[%clk 0:00:03]} 51. Kh4 {[%clk 0:00:04]}  Kc8 {[%clk 0:00:02]} 52. d7+ {[%clk 0:00:04]}  Kb8 {[%clk 0:00:02]} 53. e7 {[%clk 0:00:03]}  Rxe7 {[%clk 0:00:02]} 54. Kxg5 {[%clk 0:00:04]}  Bd8 {[%clk 0:00:03]} 55. Rxe7 {[%clk 0:00:03]}  Kc7 {[%clk 0:00:03]} 56. Kg6 {[%clk 0:00:02]}  Nd3 {[%clk 0:00:03]} 57. Rf7 {[%clk 0:00:03]}  Kd6 {[%clk 0:00:02]} 58. Re8 {[%clk 0:00:02]}  Ne5+ {[%clk 0:00:03]} 59. Rxe5 {[%clk 0:00:03]}  Kxe5 {[%clk 0:00:04]} 60. Bg4 {[%clk 0:00:03]}  Kd6 {[%clk 0:00:04]} 61. Bh3 {[%clk 0:00:04]}  Kc7 {[%clk 0:00:05]} 62. Rf8 {[%clk 0:00:05]}  Be7 {[%clk 0:00:04]} 63. Re8 {[%clk 0:00:06]}  Bd8 {[%clk 0:00:05]} 64. Kf5 {[%clk 0:00:06]}  a5 {[%clk 0:00:05]} 65. Kf4 {[%clk 0:00:05]}  b4 {[%clk 0:00:06]} 66. Kxg3 {[%clk 0:00:05]}  bxa3 {[%clk 0:00:06]} 67. bxa3 {[%clk 0:00:06]}  a4 {[%clk 0:00:06]} 68. Bf5 {[%clk 0:00:05]}  Kd6 {[%clk 0:00:06]} 69. Rxd8 {[%clk 0:00:06]} 1-0


[Site "https://www.chess.com"]

[Event "Titled Tuesday Blitz February 14 Early 2023"]
[White "Prudnykova, Olga"]
[Black "Shubenkova, Veronika"]
[WhiteFideId "14121093"]
[BlackFideId "44124040"]
[WhiteElo "2268"]
[BlackElo "1960"]
[Result "1/2-1/2"]
[Round "08"]
[TimeControl "180+2"]
[Date "2023.02.14"]
[WhiteClock "0:00:23"]
[BlackClock "0:00:06"]

1. e4 {[%clk 0:02:59]}  e6 {[%clk 0:02:59]} 2. d4 {[%clk 0:02:59]}  d5 {[%clk 0:03:00]} 3. Nc3 {[%clk 0:02:58]}  Nf6 {[%clk 0:03:00]} 4. e5 {[%clk 0:02:58]}  Nfd7 {[%clk 0:02:59]} 5. Qh5 {[%clk 0:02:58]}  Be7 {[%clk 0:02:54]} 6. Nf3 {[%clk 0:02:37]}  g6 {[%clk 0:02:54]} 7. Qh3 {[%clk 0:02:34]}  a6 {[%clk 0:02:52]} 8. Bh6 {[%clk 0:02:32]}  Rg8 {[%clk 0:02:50]} 9. Qg3 {[%clk 0:02:19]}  c5 {[%clk 0:02:45]} 10. dxc5 {[%clk 0:02:11]}  Nxc5 {[%clk 0:02:43]} 11. O-O-O {[%clk 0:02:10]}  Nc6 {[%clk 0:02:43]} 12. h4 {[%clk 0:02:04]}  Qa5 {[%clk 0:01:27]} 13. Bg5 {[%clk 0:01:56]}  Bd7 {[%clk 0:01:27]} 14. Bxe7 {[%clk 0:01:50]}  Nxe7 {[%clk 0:01:25]} 15. Ng5 {[%clk 0:01:48]}  Nf5 {[%clk 0:01:25]} 16. Qf3 {[%clk 0:01:42]}  O-O-O {[%clk 0:01:23]} 17. g4 {[%clk 0:01:31]}  d4 {[%clk 0:01:18]} 18. Nce4 {[%clk 0:01:25]}  Bc6 {[%clk 0:00:08]} 19. Kb1 {[%clk 0:01:10]}  Rd7 {[%clk 0:00:05]} 20. Rh3 {[%clk 0:01:07]}  Nxe4 {[%clk 0:00:05]} 21. Nxe4 {[%clk 0:01:05]}  Ne7 {[%clk 0:00:05]} 22. Bd3 {[%clk 0:01:00]}  Bd5 {[%clk 0:00:04]} 23. a3 {[%clk 0:01:00]}  Nc6 {[%clk 0:00:04]} 24. Qf4 {[%clk 0:00:54]}  Qb6 {[%clk 0:00:04]} 25. Nd6+ {[%clk 0:00:51]}  Rxd6 {[%clk 0:00:04]} 26. exd6 {[%clk 0:00:50]}  f5 {[%clk 0:00:05]} 27. gxf5 {[%clk 0:00:49]}  gxf5 {[%clk 0:00:05]} 28. Qh6 {[%clk 0:00:44]}  Rd8 {[%clk 0:00:05]} 29. Qxh7 {[%clk 0:00:39]}  Ne5 {[%clk 0:00:05]} 30. Qc7+ {[%clk 0:00:37]}  Qxc7 {[%clk 0:00:05]} 31. dxc7 {[%clk 0:00:38]}  Kxc7 {[%clk 0:00:06]} 32. h5 {[%clk 0:00:38]}  Nxd3 {[%clk 0:00:07]} 33. cxd3 {[%clk 0:00:37]}  e5 {[%clk 0:00:07]} 34. h6 {[%clk 0:00:36]}  e4 {[%clk 0:00:07]} 35. Rh5 {[%clk 0:00:35]}  exd3 {[%clk 0:00:06]} 36. Rxf5 {[%clk 0:00:35]}  Be4 {[%clk 0:00:07]} 37. Rf7+ {[%clk 0:00:35]}  Kd6 {[%clk 0:00:06]} 38. f3 {[%clk 0:00:36]}  Bd5 {[%clk 0:00:03]} 39. Rxd3 {[%clk 0:00:34]}  Bxf7 {[%clk 0:00:03]} 40. Rxd4+ {[%clk 0:00:34]}  Ke7 {[%clk 0:00:03]} 41. Rxd8 {[%clk 0:00:23]}  Kxd8 {[%clk 0:00:04]} 42. Kc2 {[%clk 0:00:23]}  Bg6+ {[%clk 0:00:04]} 43. Kc3 {[%clk 0:00:24]}  Ke7 {[%clk 0:00:05]} 44. Kd4 {[%clk 0:00:24]}  Kd6 {[%clk 0:00:05]} 45. f4 {[%clk 0:00:24]}  Bb1 {[%clk 0:00:05]} 46. b4 {[%clk 0:00:24]}  Bg6 {[%clk 0:00:05]} 47. Kc4 {[%clk 0:00:23]}  Bh7 {[%clk 0:00:05]} 48. Kd4 {[%clk 0:00:23]}  Bb1 {[%clk 0:00:05]} 49. Kc4 {[%clk 0:00:23]}  b6 {[%clk 0:00:05]} 50. Kd4 {[%clk 0:00:23]}  Bf5 {[%clk 0:00:05]} 51. a4 {[%clk 0:00:22]}  Bh7 {[%clk 0:00:05]} 52. a5 {[%clk 0:00:21]}  bxa5 {[%clk 0:00:05]} 53. bxa5 {[%clk 0:00:22]}  Bb1 {[%clk 0:00:05]} 54. Kc4 {[%clk 0:00:22]}  Bf5 {[%clk 0:00:05]} 55. Kd4 {[%clk 0:00:22]}  Bh7 {[%clk 0:00:05]} 56. Kc4 {[%clk 0:00:23]}  Bb1 {[%clk 0:00:05]} 57. Kd4 {[%clk 0:00:23]}  Bf5 {[%clk 0:00:06]} 58. Kc4 {[%clk 0:00:23]}  Bh7 {[%clk 0:00:06]} 1/2-1/2


[Site "https://www.chess.com"]

[Event "Titled Tuesday Blitz February 14 Early 2023"]
[White "Llanos, Guillermo"]
[Black "Gonzalez, Francisco Silva"]
[WhiteFideId "100358"]
[BlackFideId "1512285"]
[WhiteElo "2290"]
[BlackElo "2021"]
[Result "0-1"]
[Round "08"]
[TimeControl "180+2"]
[Date "2023.02.14"]
[WhiteClock "0:00:02"]
[BlackClock "0:00:35"]

1. d4 {[%clk 0:02:55]}  Nf6 {[%clk 0:02:37]} 2. c4 {[%clk 0:02:53]}  e6 {[%clk 0:02:37]} 3. Nc3 {[%clk 0:02:51]}  Bb4 {[%clk 0:02:36]} 4. Qc2 {[%clk 0:02:51]}  d6 {[%clk 0:02:36]} 5. e4 {[%clk 0:02:50]}  c5 {[%clk 0:02:36]} 6. a3 {[%clk 0:02:47]}  cxd4 {[%clk 0:02:31]} 7. axb4 {[%clk 0:02:47]}  dxc3 {[%clk 0:02:32]} 8. bxc3 {[%clk 0:02:46]}  a5 {[%clk 0:02:27]} 9. Bb2 {[%clk 0:02:33]}  O-O {[%clk 0:02:25]} 10. Bd3 {[%clk 0:02:30]}  b6 {[%clk 0:02:25]} 11. Nf3 {[%clk 0:02:23]}  Bb7 {[%clk 0:02:24]} 12. O-O {[%clk 0:02:22]}  Nbd7 {[%clk 0:02:24]} 13. Ng5 {[%clk 0:01:45]}  h6 {[%clk 0:02:21]} 14. Nh3 {[%clk 0:01:43]}  Qc7 {[%clk 0:02:15]} 15. f3 {[%clk 0:01:40]}  Ne5 {[%clk 0:02:12]} 16. Qe2 {[%clk 0:01:30]}  Ba6 {[%clk 0:02:08]} 17. b5 {[%clk 0:01:28]}  Bb7 {[%clk 0:02:06]} 18. Ra4 {[%clk 0:01:23]}  Rfc8 {[%clk 0:02:04]} 19. Nf2 {[%clk 0:01:22]}  Ned7 {[%clk 0:02:02]} 20. Ba3 {[%clk 0:01:16]}  Nc5 {[%clk 0:02:02]} 21. Bxc5 {[%clk 0:01:15]}  Qxc5 {[%clk 0:02:02]} 22. Re1 {[%clk 0:01:11]}  Re8 {[%clk 0:01:57]} 23. Qe3 {[%clk 0:01:10]}  Qc7 {[%clk 0:01:57]} 24. e5 {[%clk 0:01:02]}  Nd7 {[%clk 0:01:53]} 25. exd6 {[%clk 0:01:00]}  Qxd6 {[%clk 0:01:53]} 26. Ne4 {[%clk 0:00:59]}  Qc7 {[%clk 0:01:53]} 27. Rd1 {[%clk 0:00:51]}  Rad8 {[%clk 0:01:53]} 28. Nd6 {[%clk 0:00:49]}  Re7 {[%clk 0:01:46]} 29. Nxb7 {[%clk 0:00:48]}  Qxb7 {[%clk 0:01:45]} 30. Be4 {[%clk 0:00:47]}  Qb8 {[%clk 0:01:45]} 31. Ra2 {[%clk 0:00:35]}  Nc5 {[%clk 0:01:43]} 32. Rad2 {[%clk 0:00:35]}  Red7 {[%clk 0:01:37]} 33. Rd4 {[%clk 0:00:33]}  e5 {[%clk 0:01:33]} 34. Rd5 {[%clk 0:00:32]}  Qc7 {[%clk 0:01:30]} 35. Bf5 {[%clk 0:00:30]}  Rxd5 {[%clk 0:01:25]} 36. Rxd5 {[%clk 0:00:29]}  f6 {[%clk 0:01:25]} 37. Qd2 {[%clk 0:00:25]}  Re8 {[%clk 0:01:17]} 38. Rd6 {[%clk 0:00:23]}  Nb3 {[%clk 0:01:13]} 39. Qd5+ {[%clk 0:00:22]}  Kf8 {[%clk 0:01:09]} 40. Bg6 {[%clk 0:00:19]}  a4 {[%clk 0:00:54]} 41. Rc6 {[%clk 0:00:17]}  Qe7 {[%clk 0:00:53]} 42. Bxe8 {[%clk 0:00:16]}  Qxe8 {[%clk 0:00:48]} 43. Qd6+ {[%clk 0:00:15]}  Kf7 {[%clk 0:00:47]} 44. Rc7+ {[%clk 0:00:14]}  Kg6 {[%clk 0:00:47]} 45. Qxb6 {[%clk 0:00:12]}  a3 {[%clk 0:00:43]} 46. Qa7 {[%clk 0:00:11]}  Qf8 {[%clk 0:00:42]} 47. Re7 {[%clk 0:00:09]}  a2 {[%clk 0:00:42]} 48. Rxg7+ {[%clk 0:00:06]}  Qxg7 {[%clk 0:00:42]} 49. Qxa2 {[%clk 0:00:06]}  Nc5 {[%clk 0:00:42]} 50. b6 {[%clk 0:00:05]}  Qd7 {[%clk 0:00:40]} 51. Qc2+ {[%clk 0:00:04]}  f5 {[%clk 0:00:41]} 52. g4 {[%clk 0:00:03]}  h5 {[%clk 0:00:35]} 53. gxf5+ {[%clk 0:00:02]}  Kf6 {[%clk 0:00:35]} 0-1


[Site "https://www.chess.com"]

[Event "Titled Tuesday Blitz February 14 Early 2023"]
[White "Kulkarni, Vikramaditya"]
[Black "Ruge, Edison"]
[WhiteFideId "5009847"]
[BlackFideId "4401000"]
[WhiteElo "2251"]
[BlackElo "2201"]
[Result "1-0"]
[Round "08"]
[TimeControl "180+2"]
[Date "2023.02.14"]
[WhiteClock "0:00:02"]
[BlackClock "0:00:21"]

1. d4 {[%clk 0:03:00]}  d5 {[%clk 0:02:57]} 2. c4 {[%clk 0:03:00]}  e5 {[%clk 0:02:57]} 3. dxe5 {[%clk 0:02:59]}  d4 {[%clk 0:02:58]} 4. Nf3 {[%clk 0:02:59]}  Nc6 {[%clk 0:02:58]} 5. a3 {[%clk 0:02:59]}  Bg4 {[%clk 0:02:59]} 6. Nbd2 {[%clk 0:02:58]}  a5 {[%clk 0:02:57]} 7. h3 {[%clk 0:02:55]}  Bh5 {[%clk 0:02:56]} 8. g4 {[%clk 0:02:54]}  Bg6 {[%clk 0:02:56]} 9. Bg2 {[%clk 0:02:55]}  a4 {[%clk 0:02:55]} 10. b4 {[%clk 0:02:41]}  axb3 {[%clk 0:02:50]} 11. Nxb3 {[%clk 0:02:40]}  d3 {[%clk 0:02:44]} 12. Bb2 {[%clk 0:02:33]}  dxe2 {[%clk 0:02:36]} 13. Qxd8+ {[%clk 0:02:09]}  Rxd8 {[%clk 0:02:34]} 14. Nbd4 {[%clk 0:02:09]}  Na5 {[%clk 0:02:30]} 15. Nd2 {[%clk 0:02:01]}  Bd3 {[%clk 0:02:26]} 16. Rc1 {[%clk 0:01:55]}  Bc5 {[%clk 0:02:18]} 17. N4b3 {[%clk 0:01:49]}  Nxb3 {[%clk 0:02:10]} 18. Nxb3 {[%clk 0:01:50]}  Ba7 {[%clk 0:02:03]} 19. Bxb7 {[%clk 0:01:48]}  Ne7 {[%clk 0:02:01]} 20. Rc3 {[%clk 0:01:35]}  O-O {[%clk 0:02:00]} 21. Rg1 {[%clk 0:01:31]}  Bxc4 {[%clk 0:01:53]} 22. Rxc4 {[%clk 0:01:22]}  Rd1+ {[%clk 0:01:52]} 23. Kxe2 {[%clk 0:01:22]}  Rxg1 {[%clk 0:01:52]} 24. Rxc7 {[%clk 0:01:21]}  Ng6 {[%clk 0:01:51]} 25. Ba6 {[%clk 0:01:08]}  Rb1 {[%clk 0:01:45]} 26. Rc2 {[%clk 0:01:01]}  Nf4+ {[%clk 0:01:41]} 27. Kf3 {[%clk 0:01:00]}  Nxh3 {[%clk 0:01:39]} 28. Nd2 {[%clk 0:00:59]}  Re1 {[%clk 0:01:29]} 29. Rc7 {[%clk 0:00:53]}  Nxf2 {[%clk 0:01:22]} 30. Rxa7 {[%clk 0:00:50]}  Nd3 {[%clk 0:01:22]} 31. Bxd3 {[%clk 0:00:49]}  Rd8 {[%clk 0:01:22]} 32. Bc4 {[%clk 0:00:32]}  h5 {[%clk 0:01:13]} 33. e6 {[%clk 0:00:29]}  fxe6 {[%clk 0:01:02]} 34. Rxg7+ {[%clk 0:00:26]}  Kf8 {[%clk 0:01:02]} 35. Ne4 {[%clk 0:00:19]}  Rb1 {[%clk 0:00:57]} 36. Bf6 {[%clk 0:00:17]}  Ra8 {[%clk 0:00:50]} 37. Ng5 {[%clk 0:00:15]}  Rxa3+ {[%clk 0:00:49]} 38. Ke4 {[%clk 0:00:14]}  Re1+ {[%clk 0:00:48]} 39. Kd4 {[%clk 0:00:13]}  e5+ {[%clk 0:00:44]} 40. Kc5 {[%clk 0:00:11]}  Ke8 {[%clk 0:00:33]} 41. Ne6 {[%clk 0:00:09]}  Ra5+ {[%clk 0:00:24]} 42. Kb6 {[%clk 0:00:09]}  Rb1+ {[%clk 0:00:21]} 43. Kxa5 {[%clk 0:00:07]}  Ra1+ {[%clk 0:00:21]} 44. Kb6 {[%clk 0:00:05]}  Rb1+ {[%clk 0:00:21]} 45. Bb5+ {[%clk 0:00:02]} 1-0


[Site "https://www.chess.com"]